2CCN - Level 2 Cost Centre Name,,9CCN - Level 9 Cost Centre Name,9CCC - Level 9 Cost Centre Code,9AN - Level 9 Account Name,9AC - Level 9 Account Code,Date posted,Date of transaction,Merchant Name,Merchant City,Merchant State,Merchant Zip Code,Originating Account Name,Originating Account Number,MCC/SIC Code,MCC Description,Original Amount,Currency,Conversion Rate,Billed Amount,Debit Credit,Reference Number,Statement Cycle,Account Name
Gloucester City Council,23UE,Gloucester Life Museum,MU005,Catering Provisions,3103,04/05/2017,03/05/2017,ASDA SUPERSTORE,GLOUCESTER,GBR,GL1 1DS,REDACTED,556*********2362,5411,"GROCERY STORES, SUPERMARKETS",7.21,Pound Sterling (826),1.000000000,7.21,Debit,45377757124080213367988,02/06/2017,GLOUCESTER CC
Gloucester City Council,23UE,Museum of Gloucester,MU002,General Supplies/Materials,3025,08/05/2017,06/05/2017,POUNDLAND LTD,WILLENHALL,,WV13 2QT,REDACTED,556*********2362,5310,DISCOUNT STORES,6,Pound Sterling (826),1.000000000,6,Debit,05230657127860079441195,02/06/2017,GLOUCESTER CC
Gloucester City Council,23UE,Gloucester Life Museum,MU005,Catering Provisions,3103,08/05/2017,06/05/2017,ASDA SUPERSTORE,GLOUCESTER,GBR,GL1 1DS,REDACTED,556*********2362,5411,"GROCERY STORES, SUPERMARKETS",2.9,Pound Sterling (826),1.000000000,2.9,Debit,15377757127010648539604,02/06/2017,GLOUCESTER CC
Gloucester City Council,23UE,Museum of Gloucester,MU002,Catering Provisions,3103,11/05/2017,10/05/2017,BOOKER LIMITED GLOUCES,GLOUCESTER,GBR,GL4 3RT,REDACTED,556*********2362,5811,CATERERS,71.92,Pound Sterling (826),1.000000000,71.92,Debit,55184227130891312493808,02/06/2017,GLOUCESTER CC
Gloucester City Council,23UE,Gloucester Life Museum,MU005,Catering Provisions,3103,15/05/2017,12/05/2017,ASDA SUPERSTORE,GLOUCESTER,GBR,GL1 1DS,REDACTED,556*********2362,5411,"GROCERY STORES, SUPERMARKETS",5.6,Pound Sterling (826),1.000000000,5.6,Debit,45377757133060226945946,02/06/2017,GLOUCESTER CC
Gloucester City Council,23UE,Gloucester Life Museum,MU005,Catering Provisions,3103,17/05/2017,16/05/2017,ASDA SUPERSTORE,GLOUCESTER,GBR,GL1 1DS,REDACTED,556*********2362,5411,"GROCERY STORES, SUPERMARKETS",2.9,Pound Sterling (826),1.000000000,2.9,Debit,45377757137080239107843,02/06/2017,GLOUCESTER CC
Gloucester City Council,23UE,Museum of Gloucester,MU002,Catering Provisions,3103,22/05/2017,20/05/2017,ASDA SUPERSTORE,GLOUCESTER,GBR,GL1 1DS,REDACTED,556*********2362,5411,"GROCERY STORES, SUPERMARKETS",11.12,Pound Sterling (826),1.000000000,11.12,Debit,15377757141010623339402,02/06/2017,GLOUCESTER CC
Gloucester City Council,23UE,Museum of Gloucester,MU002,General Supplies/Materials,3025,23/05/2017,19/05/2017,GLOUCESTER CC INT,GLOUCESTER,GBR,GL1 2EQ,REDACTED,556*********2362,9399,GOVERNMENT SERVICES NOT ELSEWHERE CLASSIFIED,5,Pound Sterling (826),1.000000000,5,Debit,15425157143020022807621,02/06/2017,GLOUCESTER CC
Gloucester City Council,23UE,Museum of Gloucester,MU002,General Supplies/Materials,3025,23/05/2017,19/05/2017,GLOUCESTER CC INT,GLOUCESTER,GBR,GL1 2EQ,REDACTED,556*********2362,9399,GOVERNMENT SERVICES NOT ELSEWHERE CLASSIFIED,-5,Pound Sterling (826),1.000000000,-5,Credit,15425157143020022807647,02/06/2017,GLOUCESTER CC
Gloucester City Council,23UE,Museum of Gloucester,MU002,General Supplies/Materials,3025,25/05/2017,24/05/2017,POUNDLAND LTD 1167,GLOUCESTER,,GL1 1XH,REDACTED,556*********2362,5310,DISCOUNT STORES,4,Pound Sterling (826),1.000000000,4,Debit,05230657145250073638962,02/06/2017,GLOUCESTER CC
Gloucester City Council,23UE,Gloucester Life Museum,MU005,Catering Provisions,3103,29/05/2017,27/05/2017,ASDA SUPERSTORE,GLOUCESTER,GBR,GL1 1DS,REDACTED,556*********2362,5411,"GROCERY STORES, SUPERMARKETS",7.95,Pound Sterling (826),1.000000000,7.95,Debit,15377757148060678263562,02/06/2017,GLOUCESTER CC
Gloucester City Council,23UE,Managing Director & Directors,MT001,General Supplies/Materials,3025,09/05/2017,08/05/2017,SP PAINTGLOW WEBSITE,01900 837942,,,REDACTED,471*********7903,5734,COMPUTER SOFTWARE STORES,63.96,Pound Sterling (826),1.000000000,63.96,Debit,74648927128130701189838,02/06/2017,GLOUCESTER CC
Gloucester City Council,23UE,Countryside Unit,EP003,General Supplies/Materials,3025,26/05/2017,25/05/2017,PAYPAL *GARDENERSDR,35314369001,GBR,TW91EH,REDACTED,556*********6734,5261,"NURSERIES, LAWN AND GARDEN SUPPLY STORES",35.46,Pound Sterling (826),1.000000000,35.46,Debit,85130087145720334497658,02/06/2017,GLOUCESTER CC
Gloucester City Council,23UE,Elections,DS004,Hospitality & Refreshments/County Council Elections,3104/C244,05/05/2017,04/05/2017,TESCO STORE 2581,GLOUCESTER,GBR,GL1 2SR,REDACTED,556*********3029,5411,"GROCERY STORES, SUPERMARKETS",22.4,Pound Sterling (826),1.000000000,22.4,Debit,45377757125090256663176,02/06/2017,GLOUCESTER CC
Gloucester City Council,23UE,Homelessness,HS002,B&B Payments,1303,08/05/2017,05/05/2017,PREMIER INN 44535095,LINCOLN,,LN2 5AQ,REDACTED,556*********4774,3811,PREMIER INN,81.99,Pound Sterling (826),1.000000000,81.99,Debit,55541967127529000135216,02/06/2017,GLOUCESTER CC
Gloucester City Council,23UE,Homelessness,HS002,B&B Payments,1303,09/05/2017,08/05/2017,TRAVELODGE GB0000,THAME,,OX9 3AT,REDACTED,556*********4774,3615,TRAVELODGE,499,Pound Sterling (826),1.000000000,499,Debit,55504437128298140325842,02/06/2017,GLOUCESTER CC
Gloucester City Council,23UE,Homelessness,HS002,B&B Payments,1303,10/05/2017,09/05/2017,TRAVELODGE GB0000,THAME,,OX9 3AT,REDACTED,556*********4774,3615,TRAVELODGE,246,Pound Sterling (826),1.000000000,246,Debit,55504437129298147958156,02/06/2017,GLOUCESTER CC
Gloucester City Council,23UE,Homelessness,HS002,B&B Payments,1303,16/05/2017,15/05/2017,TRAVELODGE GB0000,THAME,,OX9 3AT,REDACTED,556*********4774,3615,TRAVELODGE,283,Pound Sterling (826),1.000000000,283,Debit,55504437135298192055744,02/06/2017,GLOUCESTER CC
Gloucester City Council,23UE,Homelessness,HS002,B&B Payments,1303,22/05/2017,19/05/2017,TRAVELODGE GB0000,THAME,,OX9 3AT,REDACTED,556*********4774,3615,TRAVELODGE,184,Pound Sterling (826),1.000000000,184,Debit,55504437139298121170966,02/06/2017,GLOUCESTER CC
Gloucester City Council,23UE,Homelessness,HS002,B&B Payments,1303,23/05/2017,22/05/2017,TRAVELODGE GB0000,THAME,,OX9 3AT,REDACTED,556*********4774,3615,TRAVELODGE,64,Pound Sterling (826),1.000000000,64,Debit,55504437142298142486420,02/06/2017,GLOUCESTER CC
Gloucester City Council,23UE,Homelessness,HS002,B&B Payments,1303,31/05/2017,30/05/2017,TRAVELODGE GB0000,THAME,,OX9 3AT,REDACTED,556*********4774,3615,TRAVELODGE,138,Pound Sterling (826),1.000000000,138,Debit,55504437150298102726095,02/06/2017,GLOUCESTER CC
Gloucester City Council,23UE,Docks Complex - Services,AM006,Hospitality & Refreshments,3104,03/05/2017,02/05/2017,SAINSBURYS 2221,GLOUCESTER,GBR,GL2 5SA,REDACTED,556*********1053,5411,"GROCERY STORES, SUPERMARKETS",20.95,Pound Sterling (826),1.000000000,20.95,Debit,25425157123070110352785,02/06/2017,GLOUCESTER CC
Gloucester City Council,23UE,Docks Complex - Services,AM006,Equipment and Furniture,3001,04/05/2017,02/05/2017,B & Q 1179,GLOUCESTER,,GL1 2SG,REDACTED,556*********1053,5211,LUMBER AND BUILDING MATERIALS STORES,20,Pound Sterling (826),1.000000000,20,Debit,05230657123770078602842,02/06/2017,GLOUCESTER CC
Gloucester City Council,23UE,Docks Complex - Services,AM006,Hospitality & Refreshments,3014,09/05/2017,08/05/2017,SAINSBURYS 2221,GLOUCESTER,GBR,GL2 5SA,REDACTED,556*********1053,5411,"GROCERY STORES, SUPERMARKETS",22.2,Pound Sterling (826),1.000000000,22.2,Debit,25425157129020094241425,02/06/2017,GLOUCESTER CC
Gloucester City Council,23UE,Docks Complex - Services,AM006,Hospitality & Refreshments,3104,19/05/2017,18/05/2017,MCOLLS,GLOUCESTERSHI,GBR,GL1 2DN,REDACTED,556*********1053,5499,"MISC FOOD STORES-SPECIALITY,CONVENIENCE,MARKETS,VENDING MACHINES",3,Pound Sterling (826),1.000000000,3,Debit,25377757139000121055462,02/06/2017,GLOUCESTER CC
Gloucester City Council,23UE,Docks Complex - Services,AM006,Hospitality & Refreshments,3104,22/05/2017,19/05/2017,SAINSBURYS 2221,GLOUCESTER,GBR,GL2 5SA,REDACTED,556*********1053,5411,"GROCERY STORES, SUPERMARKETS",8.4,Pound Sterling (826),1.000000000,8.4,Debit,25425157140010103596443,02/06/2017,GLOUCESTER CC
Gloucester City Council,23UE,Council Streetcare Team,NE002,External Training Course Fees,0550,04/05/2017,03/05/2017,VUE*NCS CITB HS&E TEST,44-3449944488,GBR,WC2R 0RL,REDACTED,556*********2263,8299,SCHOOLS AND EDUCATIONAL SERVICES NOT ELSEWHERE CLASSIFIED,19.5,Pound Sterling (826),1.000000000,19.5,Debit,55204727123000829776242,02/06/2017,GLOUCESTER CC
Gloucester City Council,23UE,Food Safety,FL001,External Training Course Fees,0550,05/05/2017,04/05/2017,CIEH,LNDON SE1 001,,SE1 8DJ,REDACTED,556*********2263,8699,MEMBERSHIP ORGANIZATIONS NOT ELSEWHERE CLASSIFIED,155,Pound Sterling (826),1.000000000,155,Debit,55504437124039391781323,02/06/2017,GLOUCESTER CC
Gloucester City Council,23UE,Eastgate Market,MK003,Printing External,3203,08/05/2017,05/05/2017,WWW.SIGNMANCOMPANY.CO.,08714234252,,S63 5DB,REDACTED,556*********2263,7399,BUSINESS SERVICES NOT ELSEWHERE CLASSIFIED,159.99,Pound Sterling (826),1.000000000,159.99,Debit,55504437125174119148536,02/06/2017,GLOUCESTER CC
Gloucester City Council,23UE,Food Safety,FL001,External Training Course Fees,0550,08/05/2017,05/05/2017,CIEH LIMITED,LONDON,,SE1 8DJ,REDACTED,556*********2263,8699,MEMBERSHIP ORGANIZATIONS NOT ELSEWHERE CLASSIFIED,120,Pound Sterling (826),1.000000000,120,Debit,55504437127039311324102,02/06/2017,GLOUCESTER CC
Gloucester City Council,23UE,Food Safety,FL001,External Training Course Fees,0550,19/05/2017,18/05/2017,CIEH,LNDON SE1 001,,SE1 8DJ,REDACTED,556*********2263,8699,MEMBERSHIP ORGANIZATIONS NOT ELSEWHERE CLASSIFIED,133,Pound Sterling (826),1.000000000,133,Debit,55504437138039388974661,02/06/2017,GLOUCESTER CC
Gloucester City Council,23UE,Guildhall Bar & Caf�,GH005,Catering Provisions,3103,05/05/2017,04/05/2017,ASDA SUPERSTORE,GLOUCESTER,GBR,GL1 1DS,REDACTED,556*********5661,5411,"GROCERY STORES, SUPERMARKETS",13.02,Pound Sterling (826),1.000000000,13.02,Debit,65377757125090343555755,02/06/2017,GLOUCESTER CC
Gloucester City Council,23UE,Guildhall Bar & Caf�,GH005,Catering Provisions,3103,08/05/2017,05/05/2017,ALDI,GLOUCESTER,,GL1 5BJ,REDACTED,556*********5661,5411,"GROCERY STORES, SUPERMARKETS",15.03,Pound Sterling (826),1.000000000,15.03,Debit,55541967126495000567231,02/06/2017,GLOUCESTER CC
Gloucester City Council,23UE,Blackfriars ,GH010,Catering Provisions,3103,08/05/2017,05/05/2017,ASDA SUPERSTORE,GLOUCESTER,GBR,GL1 1DS,REDACTED,556*********5661,5411,"GROCERY STORES, SUPERMARKETS",24,Pound Sterling (826),1.000000000,24,Debit,45377757126010209569428,02/06/2017,GLOUCESTER CC
Gloucester City Council,23UE,Blackfriars ,GH010,Catering Provisions,3103,15/05/2017,13/05/2017,B&M RETAIL LTD,HS GLOUCESTER,,GL1 2DH,REDACTED,556*********5661,5310,DISCOUNT STORES,15,Pound Sterling (826),1.000000000,15,Debit,05230657134770070377101,02/06/2017,GLOUCESTER CC
Gloucester City Council,23UE,Guildhall Bar & Caf�,GH005,Catering Provisions,3103,16/05/2017,15/05/2017,BOOKER LIMITED GLOUCES,GLOUCESTER,GBR,GL4 3RT,REDACTED,556*********5661,5811,CATERERS,88.82,Pound Sterling (826),1.000000000,88.82,Debit,55184227135891361665657,02/06/2017,GLOUCESTER CC
Gloucester City Council,23UE,Guildhall Bar & Caf�,GH005,Catering Provisions,3103,17/05/2017,16/05/2017,ICELAND,GLOUCESTER,GBR,GL1 1SA,REDACTED,556*********5661,5411,"GROCERY STORES, SUPERMARKETS",9.98,Pound Sterling (826),1.000000000,9.98,Debit,55377757137080302575453,02/06/2017,GLOUCESTER CC
Gloucester City Council,23UE,Blackfriars ,GH010,Catering Provisions,3103,18/05/2017,17/05/2017,ALDI,GLOUCESTER,,GL1 5BJ,REDACTED,556*********5661,5411,"GROCERY STORES, SUPERMARKETS",62.1,Pound Sterling (826),1.000000000,62.1,Debit,55541967138495000409455,02/06/2017,GLOUCESTER CC
Gloucester City Council,23UE,Guildhall Bar & Caf�,GH005,Catering Provisions,3103,19/05/2017,18/05/2017,HOLLAND & BARRETT,GLOUCESTER,,GL1 1PD,REDACTED,556*********5661,5999,MISCELLANEOUS AND RETAIL STORES,9.95,Pound Sterling (826),1.000000000,9.95,Debit,05230657139610077585352,02/06/2017,GLOUCESTER CC
Gloucester City Council,23UE,Blackfriars ,GH010,Catering Provisions,3103,25/05/2017,24/05/2017,Amazon UK Marketplace,800-279-6620,LUX,L2338,REDACTED,556*********5661,5942,BOOK STORES,18.62,Pound Sterling (826),1.000000000,18.62,Debit,55204727144000003901769,02/06/2017,GLOUCESTER CC
Gloucester City Council,23UE,Blackfriars ,GH010,Catering Provisions,3103,25/05/2017,24/05/2017,ASDA SUPERSTORE,GLOUCESTER,GBR,GL1 1DS,REDACTED,556*********5661,5411,"GROCERY STORES, SUPERMARKETS",50.8,Pound Sterling (826),1.000000000,50.8,Debit,45377757145040259768403,02/06/2017,GLOUCESTER CC
Gloucester City Council,23UE,Blackfriars ,GH010,Catering Provisions,3103,25/05/2017,24/05/2017,AMAZON.CO.UK,AMAZON.CO.UK,LUX,,REDACTED,556*********5661,5999,MISCELLANEOUS AND RETAIL STORES,11.99,Pound Sterling (826),1.000000000,11.99,Debit,85389247144720109760248,02/06/2017,GLOUCESTER CC
Gloucester City Council,23UE,Guildhall Bar & Caf�,GH005,Catering Provisions,3103,31/05/2017,30/05/2017,CO-OPERATIVE FOOD,GLOUCESTER,,GL1 1EA,REDACTED,556*********5661,5411,"GROCERY STORES, SUPERMARKETS",7.2,Pound Sterling (826),1.000000000,7.2,Debit,05230657151140070848873,02/06/2017,GLOUCESTER CC
Gloucester City Council,23UE,Guildhall Bar & Caf�,GH005,Catering Provisions,3103,01/06/2017,31/05/2017,ASDA SUPERSTORE,GLOUCESTER,GBR,GL1 1DS,REDACTED,556*********5661,5411,"GROCERY STORES, SUPERMARKETS",4.26,Pound Sterling (826),1.000000000,4.26,Debit,45377757152080217191579,02/06/2017,GLOUCESTER CC
Gloucester City Council,23UE,Guildhall Bar & Caf�,GH005,Catering Provisions,3103,02/06/2017,01/06/2017,ICELAND,GLOUCESTER,GBR,GL1 1SA,REDACTED,556*********5661,5411,"GROCERY STORES, SUPERMARKETS",3.96,Pound Sterling (826),1.000000000,3.96,Debit,25377757153090117791403,02/06/2017,GLOUCESTER CC
Gloucester City Council,23UE,Planning Policy & Heritage,PL004,Public Transport - Staff,2402,05/05/2017,04/05/2017,Trainline,London,GBR,1445,REDACTED,556*********3822,4112,PASSENGER RAILWAYS,47.94,Pound Sterling (826),1.000000000,47.94,Debit,85130087124717648698091,02/06/2017,GLOUCESTER CC
Gloucester City Council,23UE,Rehousing,HS001,Public Transport - Staff,2402,08/05/2017,05/05/2017,Trainline,London,GBR,1445,REDACTED,556*********3822,4112,PASSENGER RAILWAYS,60.89,Pound Sterling (826),1.000000000,60.89,Debit,85130087125717690673272,02/06/2017,GLOUCESTER CC
Gloucester City Council,23UE,Planning Policy & Heritage,PL004,Public Transport - Staff,2402,09/05/2017,08/05/2017,Trainline,London,GBR,1445,REDACTED,556*********3822,4112,PASSENGER RAILWAYS,11.47,Pound Sterling (826),1.000000000,11.47,Debit,85130087128718775571529,02/06/2017,GLOUCESTER CC
Gloucester City Council,23UE,Managing Director & Directors,MT001,Public Transport - Staff,2402,09/05/2017,08/05/2017,Trainline,London,GBR,1445,REDACTED,556*********3822,4112,PASSENGER RAILWAYS,127.6,Pound Sterling (826),1.000000000,127.6,Debit,85130087128718775566297,02/06/2017,GLOUCESTER CC
Gloucester City Council,23UE,Planning Policy & Heritage,PL004,Public Transport - Staff,2402,09/05/2017,08/05/2017,Trainline,London,GBR,1445,REDACTED,556*********3822,4112,PASSENGER RAILWAYS,18,Pound Sterling (826),1.000000000,18,Debit,85130087128718775563211,02/06/2017,GLOUCESTER CC
Gloucester City Council,23UE,Planning Policy & Heritage,PL004,Public Transport - Staff,2402,17/05/2017,16/05/2017,Trainline,London,GBR,1445,REDACTED,556*********3822,4112,PASSENGER RAILWAYS,15.45,Pound Sterling (826),1.000000000,15.45,Debit,85130087136719047420537,02/06/2017,GLOUCESTER CC
Gloucester City Council,23UE,Planning Policy & Heritage,PL004,Public Transport - Staff,2402,17/05/2017,16/05/2017,Trainline,London,GBR,1445,REDACTED,556*********3822,4112,PASSENGER RAILWAYS,19.94,Pound Sterling (826),1.000000000,19.94,Debit,85130087136719047420727,02/06/2017,GLOUCESTER CC
Gloucester City Council,23UE,Historic Buildings,PL006,Public Transport - Staff,2402,17/05/2017,16/05/2017,Trainline,London,GBR,1445,REDACTED,556*********3822,4112,PASSENGER RAILWAYS,16.98,Pound Sterling (826),1.000000000,16.98,Debit,85130087136719047417368,02/06/2017,GLOUCESTER CC
Gloucester City Council,23UE,Contact Centre,CT001,Stationery,3201,18/05/2017,17/05/2017,Amazon UK Marketplace,800-279-6620,LUX,L2338,REDACTED,556*********3822,5942,BOOK STORES,29.85,Pound Sterling (826),1.000000000,29.85,Debit,55204727137000793799836,02/06/2017,GLOUCESTER CC
Gloucester City Council,23UE,Planning Policy & Heritage,PL004,Public Transport - Staff,2402,19/05/2017,18/05/2017,Trainline,London,GBR,1445,REDACTED,556*********3822,4112,PASSENGER RAILWAYS,17.9,Pound Sterling (826),1.000000000,17.9,Debit,85130087138719115512601,02/06/2017,GLOUCESTER CC
Gloucester City Council,23UE,Managing Director & Directors,MT001,Public Transport - Staff,2402,23/05/2017,22/05/2017,Trainline,London,GBR,1445,REDACTED,556*********3822,4112,PASSENGER RAILWAYS,239.6,Pound Sterling (826),1.000000000,239.6,Debit,85130087142720233618795,02/06/2017,GLOUCESTER CC
Gloucester City Council,23UE,Contact Centre,CT001,General Supplies/Materials,3025,26/05/2017,25/05/2017,TESCO STORE 2581,GLOUCESTER,GBR,GL1 2SR,REDACTED,556*********3822,5411,"GROCERY STORES, SUPERMARKETS",15.25,Pound Sterling (826),1.000000000,15.25,Debit,45377757146050291502339,02/06/2017,GLOUCESTER CC
Gloucester City Council,23UE,Planning Policy & Heritage,PL004,Public Transport - Staff,2402,29/05/2017,28/05/2017,TRAINLINE,Rail Tickets,GBR,1445,REDACTED,556*********3822,4112,PASSENGER RAILWAYS,-45.5,Pound Sterling (826),1.000000000,-45.5,Credit,85130087148721422728126,02/06/2017,GLOUCESTER CC
Gloucester City Council,23UE,Head of Neighbourhood Services,NE013,Public Transport - Staff,2402,01/06/2017,31/05/2017,Trainline,London,GBR,1445,REDACTED,556*********3822,4112,PASSENGER RAILWAYS,59.36,Pound Sterling (826),1.000000000,59.36,Debit,85130087151721531930690,02/06/2017,GLOUCESTER CC
Gloucester City Council,23UE,Financial Services,FS004,Professional Membership & Subscriptions,3403,01/06/2017,31/05/2017,CIPFA MEMBERSHIPS,LONDON WC2N,,E1 8AN,REDACTED,556*********3822,5999,MISCELLANEOUS AND RETAIL STORES,151,Pound Sterling (826),1.000000000,151,Debit,55541967152499000017806,02/06/2017,GLOUCESTER CC
Gloucester City Council,23UE,Members Support,DS002,Public Transport - Staff,2402,31/05/2017,30/05/2017,Trainline,London,GBR,1445,REDACTED,556*********4824,4112,PASSENGER RAILWAYS,81.91,Pound Sterling (826),1.000000000,81.91,Debit,85130087150721488696253,02/06/2017,GLOUCESTER CC
Gloucester City Council,23UE,Guildhall Events,GH002,Professional Advice/Consultants Fees,3952,04/05/2017,02/05/2017,PREMIER INN44016765,NEWARK,,NG24 2DB,REDACTED,556*********8256,3811,PREMIER INN,178,Pound Sterling (826),1.000000000,178,Debit,55541967124529000052075,02/06/2017,GLOUCESTER CC
Gloucester City Council,23UE,Gloucester Guildhall,GH001,General Supplies/Materials,3025,08/05/2017,07/05/2017,Amazon UK Marketplace,800-279-6620,LUX,L2338,REDACTED,556*********8256,5942,BOOK STORES,31.9,Pound Sterling (826),1.000000000,31.9,Debit,55204727127000546722327,02/06/2017,GLOUCESTER CC
Gloucester City Council,23UE,Blackfriars ,GH010,General Supplies/Materials,3025,08/05/2017,07/05/2017,AMAZON UK RETAIL AMAZO,AMAZON.CO.UK,LUX,,REDACTED,556*********8256,5999,MISCELLANEOUS AND RETAIL STORES,20.16,Pound Sterling (826),1.000000000,20.16,Debit,85389247127718937464398,02/06/2017,GLOUCESTER CC
Gloucester City Council,23UE,Gloucester Guildhall,GH001,General Supplies/Materials,3025,09/05/2017,08/05/2017,Amazon UK Marketplace,800-279-6620,LUX,L2338,REDACTED,556*********8256,5942,BOOK STORES,4.95,Pound Sterling (826),1.000000000,4.95,Debit,55204727128000977249104,02/06/2017,GLOUCESTER CC
Gloucester City Council,23UE,Blackfriars ,GH010,General Supplies/Materials,3025,11/05/2017,10/05/2017,ARGOS LTD,GLOUCESTER,,GL1 1QN,REDACTED,556*********8256,5310,DISCOUNT STORES,5.49,Pound Sterling (826),1.000000000,5.49,Debit,05230657131910071032999,02/06/2017,GLOUCESTER CC
Gloucester City Council,23UE,Gloucester Guildhall,GH001,External Training Course Fees,0550,12/05/2017,11/05/2017,PAYPAL *WOWCHER,35314369001,GBR,W85TT,REDACTED,556*********8256,5310,DISCOUNT STORES,29,Pound Sterling (826),1.000000000,29,Debit,85130087131718868556267,02/06/2017,GLOUCESTER CC
Gloucester City Council,23UE,Blackfriars ,GH010,General Supplies/Materials,3025,12/05/2017,11/05/2017,Amazon UK Marketplace,800-279-6620,LUX,L2338,REDACTED,556*********8256,5942,BOOK STORES,7.9,Pound Sterling (826),1.000000000,7.9,Debit,55204727131000252008436,02/06/2017,GLOUCESTER CC
Gloucester City Council,23UE,Blackfriars ,GH010,General Supplies/Materials,3025,12/05/2017,11/05/2017,WILKO RETAIL LIMIT,GLOUCESTER 14,,GL1 1SL,REDACTED,556*********8256,5722,HOUSEHOLD APPLIANCE STORES,55,Pound Sterling (826),1.000000000,55,Debit,05230657132060070682821,02/06/2017,GLOUCESTER CC
Gloucester City Council,23UE,Blackfriars ,GH010,Printing External,3203,12/05/2017,11/05/2017,WWW.INSTANTPRINT.C,01709 382202,,S63 5DR,REDACTED,556*********8256,7338,QUICK-COPY AND REPRODUCTION SERVICES,102,Pound Sterling (826),1.000000000,102,Debit,05230657132380076687487,02/06/2017,GLOUCESTER CC
Gloucester City Council,23UE,Blackfriars ,GH010,General Supplies/Materials,3025,17/05/2017,16/05/2017,WM MORRISON STORE,575 GLOUCESTE,,GL1 4BD,REDACTED,556*********8256,5411,"GROCERY STORES, SUPERMARKETS",10,Pound Sterling (826),1.000000000,10,Debit,05230657137200070064829,02/06/2017,GLOUCESTER CC
Gloucester City Council,23UE,Guildhall Events,GH002,General Supplies/Materials,3025,22/05/2017,19/05/2017,MIPERMIT PARKING-DOM,INTERNET,GBR,SN15 5FD,REDACTED,556*********8256,7523,AUTOMOBILE PARKING LOTS AND GARAGES,10,Pound Sterling (826),1.000000000,10,Debit,25425157140010099560148,02/06/2017,GLOUCESTER CC
Gloucester City Council,23UE,Guildhall Events,GH002,Advertising & Publicity,3404,22/05/2017,20/05/2017,FACEBK TBC34DA6M2,www.fb.me/ads,IRL,2,REDACTED,556*********8256,7311,ADVERTISING SERVICES,40.03,Pound Sterling (826),1.000000000,40.03,Debit,15265677140728403381544,02/06/2017,GLOUCESTER CC
Gloucester City Council,23UE,Gloucester Guildhall,GH001,External Training Course Fees,0550,25/05/2017,24/05/2017,PAYPAL *PERSONALLIC,35314369001,GBR,GL510WA,REDACTED,556*********8256,7392,"MANAGEMENT, CONSULTING AND PUBLIC RELATIONS SERVICES",295,Pound Sterling (826),1.000000000,295,Debit,85130087144720284195121,02/06/2017,GLOUCESTER CC
Gloucester City Council,23UE,Gloucester Guildhall,GH001,General Supplies/Materials,3025,29/05/2017,26/05/2017,B&M RETAIL LTD,HS GLOUCESTER,,GL1 2DH,REDACTED,556*********8256,5310,DISCOUNT STORES,19.99,Pound Sterling (826),1.000000000,19.99,Debit,05230657147860079194907,02/06/2017,GLOUCESTER CC
Gloucester City Council,23UE,Guildhall Events,GH002,Advertising & Publicity,3404,01/06/2017,31/05/2017,FACEBK 32G54DE5M2,www.fb.me/ads,IRL,2,REDACTED,556*********8256,7311,ADVERTISING SERVICES,17.3,Pound Sterling (826),1.000000000,17.3,Debit,15265677151461505011548,02/06/2017,GLOUCESTER CC
Gloucester City Council,23UE,Blackfriars ,GH010,General Supplies/Materials,3025,02/06/2017,01/06/2017,Amazon UK Marketplace,800-279-6620,LUX,L2338,REDACTED,556*********8256,5942,BOOK STORES,16.97,Pound Sterling (826),1.000000000,16.97,Debit,55204727152000990450712,02/06/2017,GLOUCESTER CC
Gloucester City Council,23UE,Business Transformation,BI006,ICT New System Software,3522,03/05/2017,02/05/2017,WWW.JA.NET,012358222311,,OX11 0SG,REDACTED,556*********3063,8699,MEMBERSHIP ORGANIZATIONS NOT ELSEWHERE CLASSIFIED,192,Pound Sterling (826),1.000000000,192,Debit,55504437122295371034552,02/06/2017,GLOUCESTER CC
Gloucester City Council,23UE,Business Transformation,BI006,ICT New System Software,3522,03/05/2017,02/05/2017,CONTENT CAPTURE SERVIC,DERBYSHIRE,GBR,SK23 7SW,REDACTED,556*********3063,7399,BUSINESS SERVICES NOT ELSEWHERE CLASSIFIED,585.61,Pound Sterling (826),1.000000000,585.61,Debit,55184227122891236655961,02/06/2017,GLOUCESTER CC
Gloucester City Council,23UE,Business Transformation,BI006,ICT New System Software,3522,04/05/2017,03/05/2017,EASILY LTD,LONDON E14,,E14 5LQ,REDACTED,556*********3063,7392,"MANAGEMENT, CONSULTING AND PUBLIC RELATIONS SERVICES",29.99,Pound Sterling (826),1.000000000,29.99,Debit,05230657124570077531011,02/06/2017,GLOUCESTER CC
Gloucester City Council,23UE,Countryside Unit,EP003,Road Fund License,2101,05/05/2017,04/05/2017,DVLA VEHICLE TAX,0300 1234321,,SA6 7JL,REDACTED,556*********3063,9399,GOVERNMENT SERVICES NOT ELSEWHERE CLASSIFIED,307.5,Pound Sterling (826),1.000000000,307.5,Debit,05230657125270073394618,02/06/2017,GLOUCESTER CC
Gloucester City Council,23UE,Elections,DS004,Hire of Vehicles/Plant - County Council Elections,2301/C244,05/05/2017,04/05/2017,THRIFTY CAR AND VAN RE,GLOUCESTER,GBR,GL1 5SY,REDACTED,556*********3063,3395,THRIFTY RENT-A-CAR,533.99,Pound Sterling (826),1.000000000,533.99,Debit,15425957125002268890029,02/06/2017,GLOUCESTER CC
Gloucester City Council,23UE,Elections,DS004,Hire of Vehicles/Plant - County Council Elections,2301/C244,08/05/2017,05/05/2017,THRIFTY CAR AND VAN RE,GLOUCESTER,GBR,GL1 5SY,REDACTED,556*********3063,3395,THRIFTY RENT-A-CAR,-250,Pound Sterling (826),1.000000000,-250,Credit,15425957126002628160039,02/06/2017,GLOUCESTER CC
Gloucester City Council,23UE,Vehicles,CT002,Hire of Vehicles/Plant,2301,19/05/2017,18/05/2017,ENTERPRISE,01452 419222,,GL2 5HY,REDACTED,556*********3063,3405,ENTERPRISE RENT-A-CAR,425.04,Pound Sterling (826),1.000000000,425.04,Debit,05230657139420079567956,02/06/2017,GLOUCESTER CC
Gloucester City Council,23UE,Vehicles,CT002,Hire of Vehicles/Plant,2301,23/05/2017,22/05/2017,ENTERPRISE,01452 419222,,GL2 5HY,REDACTED,556*********3063,3405,ENTERPRISE RENT-A-CAR,380.02,Pound Sterling (826),1.000000000,380.02,Debit,05230657143810072346362,02/06/2017,GLOUCESTER CC
Gloucester City Council,23UE,Civica Admin Charges,BI002,Professional Advice/Consultants Fees,3952,23/05/2017,22/05/2017,HMCOURTS-SERVICE.G,01452420100,,GL1 2ZG,REDACTED,556*********3063,9222,FINES,4998,Pound Sterling (826),1.000000000,4998,Debit,05230657143340072668482,02/06/2017,GLOUCESTER CC
Gloucester City Council,23UE,Civica Admin Charges,BI002,Professional Advice/Consultants Fees,3952,23/05/2017,22/05/2017,HMCOURTS-SERVICE.G,01452420100,,GL1 2ZG,REDACTED,556*********3063,9222,FINES,2739,Pound Sterling (826),1.000000000,2739,Debit,05230657143350072668499,02/06/2017,GLOUCESTER CC
